bitfinex-derivatives/quotes_SOLF0:USTF0_20250630
["timestamp","ask_amount","ask_price","bid_price","bid_amount"]
[1751285305090,1.80634694,150.62,150.61,6.638]
[1751285307287,1.80634694,150.63,150.59,1.80634694]
[1751285307589,6.2960345,150.63,150.59,1.80634694]
[1751285307788,1.80634694,150.63,150.59,1.80634694]
[1751285307989,6.2960345,150.63,150.62,6.6376]
[1751285308887,4.48968756,150.63,150.62,6.6376]
[1751285309086,6.2960345,150.63,150.62,6.6376]
[1751285309282,6.2960345,150.64,150.63,6.6371]
[1751285311197,6.2960345,150.64,150.62,6.6373]
[1751285311492,6.2960345,150.63,150.62,6.6373]
[1751285311693,1.80634694,150.63,150.62,6.6373]
[1751285311895,6.2960345,150.63,150.62,6.6373]
[1751285312092,1.80634694,150.63,150.62,6.6373]
[1751285312295,6.2960345,150.63,150.62,6.6373]
[1751285312492,1.80634694,150.63,150.62,6.6373]
[1751285312688,6.2960345,150.63,150.62,6.6373]
[1751285312891,1.80634694,150.63,150.62,6.6373]
[1751285313396,1.80634694,150.64,150.63,6.637]
[1751285313596,6.35351771,150.64,150.63,6.637]
[1751285314595,1.80634694,150.64,150.63,6.637]
[1751285314895,6.35340976,150.64,150.63,6.637]
[1751285315699,6.35330139,150.64,150.63,6.637]
[1751285317193,4.54695445,150.64,150.63,6.637]
[1751285318292,6.35330139,150.64,150.59,6.19817289]
[1751285318500,159.42,150.66,150.58,34.20634694]
[1751285318501,1.80634694,150.62,150.58,40.40451983]
[1751285319301,1.80634694,150.63,150.62,6.6376]
[1751285319697,1.80634694,150.63,150.59,1.80634694]
[1751285320900,1.80634694,150.63,150.62,6.6376]
[1751285321897,4.53252771,150.64,150.62,6.6376]
[1751285324303,4.53252771,150.64,150.63,6.6371]
[1751285326506,4.51979752,150.64,150.63,6.6371]
[1751285338110,8.93151969,150.64,150.63,6.6371]
[1751285344319,4.51979752,150.64,150.63,6.6371]
[1751285351726,1.80509849,150.66,150.65,6.6363]
[1751285351927,10.83181392,150.66,150.65,6.6363]
[1751285352428,6.38014254,150.66,150.65,6.6363]
[1751285352724,1.543e-05,150.66,150.65,8.44139849]
[1751285352922,1.80509849,150.72,150.65,1.80509849]
[1751285353226,1.80509849,150.72,150.68,6.20873126]
[1751285353422,1.80509849,150.72,150.71,6.6336]
[1751285355724,1.80509849,150.72,150.66,6.20873126]
[1751285355929,1.80509849,150.67,150.66,6.20873126]
[1751285356125,1.80509849,150.67,150.65,6.20873126]
[1751285356329,1.80509849,150.67,150.66,6.6358]
[1751285357832,2.81924703,150.69,150.67,6.635]
[1751285358729,2.81924703,150.69,150.66,6.6358]
[1751285358927,2.81924703,150.67,150.66,6.6358]
[1751285360529,6.6347,150.69,150.67,6.6353]
[1751285360832,2.81924703,150.68,150.67,6.6353]
[1751285364736,7.36574034,150.68,150.67,6.6353]
[1751285366937,2.81924703,150.68,150.67,6.6353]
[1751285367132,7.36574034,150.68,150.67,6.6353]
[1751285367333,2.81924703,150.68,150.67,6.6353]
[1751285367534,7.36574034,150.68,150.67,6.6353]
[1751285367731,2.81924703,150.68,150.67,6.6353]
[1751285367936,7.36574034,150.68,150.67,6.6353]
[1751285368136,2.81924703,150.68,150.67,6.6353]
[1751285368338,11.69410595,150.68,150.62,6.20873126]
[1751285368636,2.81924703,150.63,150.6,45.6566]
[1751285368937,2.81924703,150.65,150.64,6.6366]
[1751285370233,7.36574034,150.65,150.6,32.38]
[1751285370432,2.81924703,150.63,150.6,32.38]
[1751285371333,2.81924703,150.63,150.62,6.6376]
[1751285381747,1.80572066,150.63,150.62,6.6376]
[1751285381945,8.44292066,150.63,150.61,6.6378]
[1751285382242,1.80572066,150.62,150.61,6.6378]
[1751285384945,6.6371,150.64,150.62,6.6374]
[1751285385151,1.80572066,150.63,150.62,6.6374]
[1751285389046,1.80572066,150.63,150.61,6.6378]
[1751285389251,1.80572066,150.62,150.61,6.6378]
[1751285390647,1.80572066,150.62,150.6,6.6383]
[1751285390848,1.80572066,150.61,150.6,6.6383]
[1751285391149,1.80572066,150.61,150.56,4.4457]
[1751285391448,1.80572066,150.59,150.56,4.4457]
[1751285391650,1.80572066,150.59,150.56,2.1443]
[1751285391842,1.80572066,150.59,150.58,6.6394]
[1751285397055,1.80572066,150.59,150.57,6.6397]
[1751285397354,1.80572066,150.58,150.57,6.6397]
[1751285397554,1.80572066,150.58,150.56,6.64]
[1751285397759,1.80572066,150.57,150.56,6.64]
[1751285411076,8.44552066,150.57,150.55,6.6404]
[1751285411276,1.80572066,150.56,150.52,43.03145192]
[1751285411776,1.80572066,150.56,150.55,6.6407]
[1751285411975,1.80572066,150.57,150.53,1.80572066]
[1751285412476,1.80572066,150.57,150.56,6.6398]
[1751285421184,8.44552066,150.57,150.55,6.6404]
[1751285421385,1.80572066,150.56,150.55,6.6404]
[1751285424990,8.44592066,150.56,150.54,6.6409]
[1751285425190,1.80572066,150.55,150.54,6.6409]
[1751285431491,11.09596834,150.57,150.55,6.6405]
[1751285431692,1.80572066,150.56,150.55,6.6405]
[1751285433304,6.25399851,150.56,150.55,6.6405]
[1751285435101,12.89419851,150.56,150.54,6.6409]
[1751285435301,6.25399851,150.55,150.54,6.6409]
[1751285436396,1.80572066,150.55,150.54,6.6409]
[1751285436600,6.25975485,150.55,150.54,6.6409]
[1751285437203,1.80572066,150.55,150.54,6.6409]
[1751285437600,6.26018015,150.55,150.54,6.6409]
[1751285450213,1.80572066,150.55,150.54,6.6409]
[1751285457027,6.26261919,150.55,150.54,6.6409]
[1751285459833,6.26261919,150.55,150.52,6.20873126]
[1751285460020,1.80572066,150.53,150.5,6.20873126]
[1751285460220,6.26261919,150.52,150.5,6.20873126]
[1751285460525,1.80572066,150.51,150.5,6.20873126]
[1751285460728,1.80572066,150.51,150.49,41.33263126]
[1751285460933,1.80572066,150.5,150.49,41.33263126]
[1751285461127,1.80572066,150.5,150.49,15.19593126]
[1751285462425,1.80572066,150.5,150.49,8.9872]
[1751285462627,1.80572066,150.51,150.5,6.6429]
[1751285462827,6.26116741,150.51,150.5,6.6429]
[1751285463328,1.80572066,150.51,150.5,6.6429]
[1751285463529,6.26116741,150.51,150.5,6.6429]
[1751285463829,1.80572066,150.51,150.5,6.6429]
[1751285464021,6.26116741,150.51,150.5,6.6429]
[1751285464224,1.80572066,150.51,150.5,6.6429]
[1751285464428,6.26116741,150.51,150.5,6.6429]
[1751285464631,1.80572066,150.51,150.5,6.6429]
[1751285464833,6.26116741,150.51,150.5,6.6429]
[1751285465021,1.80572066,150.51,150.5,6.6429]
[1751285465931,1.80572066,150.51,150.48,6.20873126]
[1751285466127,1.80572066,150.51,150.47,6.20873126]
[1751285466128,1.80572066,150.49,150.47,6.20873126]
[1751285466327,127.24,150.54,150.46,32.6]
[1751285466328,1.80572066,150.48,150.46,38.80873126]
[1751285466528,1.80572066,150.48,150.47,6.644]
[1751285468126,32.5,150.51,150.49,6.6432]
[1751285468331,1.80572066,150.5,150.49,6.6432]
[1751285468731,1.80572066,150.5,150.46,8.01445192]
[1751285468732,1.80572066,150.5,150.48,6.6435]
[1751285469027,1.80572066,150.49,150.48,6.6435]
[1751285472930,1.80572066,150.49,150.47,6.644]
[1751285473132,1.80572066,150.48,150.44,2.2189]
[1751285473435,1.80572066,150.45,150.44,2.2189]
[1751285473636,1.80572066,150.45,150.44,6.6455]
[1751285477742,1.80572066,150.46,150.45,6.6447]
[1751285487550,32.52,150.48,150.43,1.80572066]
[1751285487749,34.32572066,150.48,150.44,1.80572066]
[1751285488046,32.52,150.48,150.47,6.6442]
[1751285488251,1.80572066,150.49,150.45,1.80572066]
[1751285488750,1.80572066,150.49,150.48,6.6434]
[1751285504362,1.80572066,150.53,150.48,42.58995118]
[1751285504561,1.80572066,150.56,150.51,1.80572066]
[1751285504761,1.80572066,150.56,150.54,6.6407]
[1751285505759,133.92,150.57,150.53,6.6413]
[1751285505954,1.80572066,150.56,150.53,6.6413]
[1751285506156,8.44602066,150.56,150.53,6.6413]
[1751285507264,1.80572066,150.55,150.53,6.6413]
[1751285509067,1.80572066,150.55,150.51,1.80572066]
[1751285510467,1.80572066,150.55,150.53,6.6413]
[1751285511268,1.80572066,150.55,150.54,6.6411]
[1751285513967,1.80572066,150.55,150.5,4.5214]
[1751285513968,6.22285616,150.56,150.55,6.6406]
[1751285514173,6.22285616,150.56,150.52,1.80572066]
[1751285515273,1.80572066,150.56,150.52,1.80572066]
[1751285515469,1.80572066,150.56,150.54,6.6407]
[1751285517874,133.9201,150.57,150.52,1.80572066]
[1751285518074,1.80572066,150.56,150.52,1.80572066]
[1751285518865,129.08572066,150.57,150.55,6.6406]
[1751285519069,129.08572066,150.57,150.53,1.80572066]
[1751285519477,129.08572066,150.57,150.55,6.6404]
[1751285520276,1.80572066,150.56,150.55,6.6404]
[1751285521376,6.6423,150.52,150.49,6.20471661]
[1751285521570,1.80572066,150.5,150.45,40.51043727]
[1751285521772,1.80572066,150.49,150.45,34.30572066]
[1751285521971,1.80572066,150.48,150.47,6.6442]
[1751285522373,1.80572066,150.49,150.48,6.6437]
[1751285523783,9.4691159,150.5,150.47,6.644]
[1751285523977,2.8262159,150.5,150.45,32.5]
[1751285524376,6.6435,150.49,150.46,6.6444]
[1751285525574,9.4700159,150.48,150.45,39.1448]
[1751285525781,2.8262159,150.48,150.43,13.02871661]
[1751285525982,2.8262159,150.46,150.42,38.70471661]
[1751285526279,9.4711159,150.46,150.43,6.6457]
[1751285527681,2.8262159,150.46,150.44,6.6455]
[1751285533886,2.8262159,150.46,150.45,6.6451]
[1751285535486,9.4701159,150.48,150.45,6.6451]
[1751285540183,2.8262159,150.46,150.32,20.6749559]
[1751285540390,2.8262159,150.41,150.34,2.8262159]
[1751285541088,9.4733159,150.41,150.38,6.6479]
[1751285541693,6.6466,150.42,150.39,6.6476]
[1751285542387,6.6466,150.42,150.4,6.6472]
[1751285544891,2.8262159,150.41,150.4,6.6472]
[1751285545292,2.8262159,150.41,150.39,6.6475]
[1751285547884,9.4731159,150.41,150.39,6.6475]
[1751285558290,2.8262159,150.41,150.4,6.6473]
[1751285559799,1.8109335,150.41,150.4,6.6473]
[1751285560893,6.6461,150.43,150.41,6.6466]
[1751285561097,1.8109335,150.42,150.41,6.6466]
[1751285565196,1.8109335,150.42,150.33,21.56483052]
[1751285565197,1.8109335,150.42,150.33,8.26423052]
[1751285565499,1.8109335,150.36,150.32,37.2734335]
[1751285565700,1.8109335,150.36,150.35,6.6495]
[1751285567900,2.83072846,150.38,150.36,6.6487]
[1751285571298,9.47902846,150.38,150.36,6.6487]
[1751285574506,9.47902846,150.38,150.28,17.00992538]
[1751285574507,2.83072846,150.38,150.26,8.26423052]
[1751285574801,2.83072846,150.27,150.22,8.26423052]
[1751285575105,2.83072846,150.27,150.26,6.6533]
[1751285575500,2.83072846,150.3,150.23,2.83072846]
[1751285575699,2.83072846,150.3,150.28,6.6523]
[1751285575900,2.83072846,150.3,150.23,11.09495898]
[1751285576296,2.83072846,150.3,150.28,6.6523]
[1751285577008,2.83072846,150.3,150.29,6.6521]
[1751285580408,2.83072846,150.3,150.22,44.25495898]
[1751285580610,33.16,150.33,150.22,44.25495898]
[1751285580800,2.83072846,150.3,150.22,44.25495898]
[1751285581001,2.83072846,150.3,150.29,6.6521]
[1751285601727,1.813671,150.3,150.29,6.6521]
[1751285607730,6.6513,150.31,150.29,6.6521]
[1751285607934,1.813671,150.3,150.23,54.4594336]
[1751285608231,1.813671,150.28,150.24,1.813671]
[1751285608432,1.813671,150.28,150.24,7.9899336]
[1751285608833,1.813671,150.28,150.27,6.653]
[1751285609332,1.813671,150.29,150.25,1.813671]
[1751285609538,1.813671,150.29,150.26,2.3737]
[1751285610031,1.813671,150.29,150.28,6.6526]
[1751285613842,1.813671,150.29,150.26,2.3737]
[1751285614035,1.813671,150.29,150.26,7.0121]
[1751285614233,6.6501,150.34,150.31,6.651]
[1751285614433,1.813671,150.32,150.31,6.651]
[1751285616540,168.7101,150.34,150.31,6.651]
[1751285616833,1.813671,150.32,150.31,6.651]
[1751285627950,1.813671,150.32,150.3,6.1762626]
[1751285628151,1.813671,150.31,150.28,6.1762626]
[1751285628351,1.813671,150.29,150.28,6.1762626]
[1751285629551,1.813671,150.29,150.28,12.8288626]
[1751285634154,1.813671,150.29,150.28,6.6526]
[1751285648678,6.651,150.32,150.29,6.652]
[1751285648877,1.813671,150.3,150.29,6.652]
[1751285649176,6.651,150.32,150.3,6.6517]
[1751285649474,1.813671,150.31,150.3,6.6517]
[1751285649979,1.813671,150.31,150.29,6.6519]
[1751285650179,1.813671,150.3,150.29,6.6519]
[1751285650471,162.06,150.34,150.27,6.1762626]
[1751285650678,1.813671,150.31,150.29,6.1762626]
[1751285651177,1.813671,150.31,150.3,12.8275626]
[1751285662291,168.7101,150.34,150.3,12.8275626]
[1751285662292,168.7101,150.34,150.31,6.6509]
[1751285662494,1.813671,150.32,150.31,6.6509]
[1751285662889,162.06,150.34,150.32,6.6508]
[1751285663089,1.813671,150.33,150.32,6.6508]
[1751285663286,1.813671,150.34,150.31,6.1762626]
[1751285663692,1.813671,150.34,150.33,6.6504]
[1751285663894,1.813671,150.34,150.33,12.8266626]
[1751285664394,1.813671,150.34,150.33,6.6504]
[1751285666000,1.813671,150.34,150.31,12.8271626]
[1751285666193,1.813671,150.32,150.31,6.6509]
[1751285671898,6.6513,150.31,150.3,6.1762626]
[1751285672105,1.813671,150.31,150.24,12.41072538]
[1751285672304,1.813671,150.25,150.21,41.594571]
[1751285672605,1.813671,150.25,150.24,6.654]
[1751285674807,1.813671,150.26,150.25,6.6539]
[1751285696421,1.813671,150.26,150.21,39.7809]
[1751285696726,1.813671,150.24,150.21,39.7809]
[1751285697528,1.813671,150.24,150.23,6.6548]
[1751285700627,1.813671,150.24,150.18,32.98]
[1751285700832,1.813671,150.21,150.18,32.98]
[1751285701627,1.813671,150.21,150.2,6.6561]
[1751285709643,1.813671,150.23,150.19,1.813671]
[1751285710235,1.813671,150.23,150.22,6.6552]
[1751285712646,32.98,150.25,150.24,6.6544]
[1751285712843,34.793671,150.25,150.24,6.6544]
[1751285713044,34.793671,150.25,150.18,35.1614]
[1751285713343,1.813671,150.23,150.19,1.813671]
[1751285713540,32.98,150.25,150.19,1.813671]
[1751285713739,1.813671,150.22,150.21,6.6557]
[1751285716340,39.6341,150.25,150.22,6.6552]
[1751285716341,1.813671,150.23,150.22,6.6552]
[1751285716947,39.6341,150.25,150.22,6.6552]
[1751285717152,1.813671,150.23,150.22,6.6552]
[1751285718050,1.813671,150.23,150.21,6.6555]
[1751285718553,1.813671,150.22,150.21,6.6555]
[1751285722556,6.6541,150.25,150.22,6.6552]
[1751285722754,1.813671,150.23,150.22,6.6552]
[1751285728955,4.6661,150.31,150.19,1.813671]
[1751285729158,1.813671,150.24,150.2,1.813671]
[1751285730660,1.813671,150.24,150.23,6.6544]
[1751285738864,39.5133,150.27,150.23,6.6544]
[1751285738865,1.813671,150.26,150.23,1.813671]
[1751285739064,1.813671,150.26,150.24,6.2214877]
[1751285739261,1.813671,150.26,150.24,12.8754877]
[1751285739459,1.813671,150.26,150.24,6.2214877]
[1751285740165,1.813671,150.26,150.23,6.2214877]
[1751285740464,1.813671,150.26,150.25,6.6539]
[1751285742367,32.86,150.27,150.25,6.6539]
[1751285742567,1.813671,150.26,150.25,6.6539]
[1751285744471,32.86,150.27,150.25,6.6539]
[1751285744669,1.813671,150.26,150.25,6.6539]
[1751285750275,32.86,150.27,150.26,6.6535]
[1751285750468,32.8,150.31,150.26,8.0351587]
[1751285750673,32.8,150.33,150.28,1.813671]
[1751285750875,2.1899,150.35,150.3,1.813671]
[1751285751176,2.1899,150.35,150.26,41.06943438]
[1751285751177,32.8,150.36,150.32,1.813671]
[1751285751373,73.81152316,150.37,150.35,6.6495]
[1751285751578,73.81152316,150.37,150.33,1.813671]
[1751285751968,73.81152316,150.37,150.34,6.6496]
[1751285752570,1.813671,150.36,150.33,6.6502]
[1751285753081,1.813671,150.36,150.32,8.0351587]
[1751285753374,1.813671,150.36,150.32,1.813671]
[1751285754279,1.813671,150.33,150.31,6.2214877]
[1751285754479,1.813671,150.33,150.3,41.2304877]
[1751285754679,1.813671,150.33,150.3,35.009]
[1751285755279,1.813671,150.34,150.32,6.6506]
[1751285755680,6.6493,150.36,150.32,6.6506]
[1751285755981,9.4809871,150.36,150.32,6.6506]
[1751285759581,9.4809871,150.36,150.33,6.6503]
[1751285759774,81.47833926,150.37,150.33,6.6503]
[1751285760483,81.47833926,150.37,150.34,6.6498]
[1751285761183,74.82953926,150.37,150.34,6.6498]
[1751285761484,74.82953926,150.37,150.35,6.6495]
[1751285761779,71.99785216,150.37,150.35,6.6495]
[1751285761983,71.99785216,150.37,150.36,6.649]
[1751285762885,71.99785216,150.37,150.35,6.6493]
[1751285765483,137.3599871,150.38,150.35,6.6493]
[1751285770094,137.3599871,150.38,150.34,6.6497]
[1751285771393,6.6487,150.37,150.34,6.6497]
[1751285773195,6.6487,150.37,150.34,6.6497]
[1751285775801,1.81189476,150.35,150.34,6.6497]
[1751285776605,127.88,150.38,150.35,6.6494]
[1751285776793,1.81189476,150.36,150.35,6.6494]
[1751285786112,1.81189476,150.37,150.35,6.6494]
[1751285787909,1.81189476,150.36,150.35,6.6494]
[1751285790316,134.5285,150.38,150.35,6.6494]
[1751285790512,1.81189476,150.36,150.35,6.6494]
[1751285794023,134.5285,150.38,150.35,6.6494]
[1751285794224,1.81189476,150.37,150.36,6.6489]
[1751285799527,1.81189476,150.37,150.32,1.81189476]
[1751285801329,1.81189476,150.36,150.32,1.81189476]
[1751285802530,1.81189476,150.36,150.35,6.6492]
[1751285807033,1.81189476,150.36,150.34,6.6497]
[1751285807934,1.81189476,150.36,150.35,6.6495]
[1751285809637,1.81189476,150.37,150.36,6.649]
[1751285810037,127.88,150.38,150.34,1.81189476]
[1751285810742,127.88,150.38,150.37,6.6486]
[1751285816145,129.69189476,150.38,150.3,35.009]
[1751285816346,129.69189476,150.38,150.29,4.6357]
[1751285816347,1.81189476,150.32,150.25,1.81189476]
[1751285816545,160.5,150.33,150.24,32.76]
[1751285816742,1.81189476,150.27,150.26,6.6531]
[1751285817341,1.81189476,150.27,150.25,6.6536]
[1751285818345,1.81189476,150.27,150.26,6.6535]
[1751285819546,1.81189476,150.28,150.26,6.6535]
[1751285819747,6.6523,150.29,150.26,6.6535]
[1751285819944,2.83403795,150.28,150.23,2.3537]
[1751285820547,2.83403795,150.28,150.25,6.6536]
[1751285820948,9.48673795,150.28,150.25,6.6536]
[1751285821248,9.48673795,150.28,150.24,6.6542]
[1751285821449,9.48673795,150.28,150.23,2.3537]
[1751285821743,6.6531,150.27,150.21,32.76]
[1751285822851,2.83403795,150.26,150.24,6.6541]
[1751285823250,2.83403795,150.26,150.21,32.76]
[1751285824251,2.83403795,150.26,150.25,6.6539]
[1751285825854,2.83403795,150.28,150.25,6.6539]
[1751285827358,9.48673795,150.28,150.25,6.6539]
[1751285829855,2.83403795,150.28,150.25,6.6539]
[1751285830064,6.6531,150.27,150.25,6.6539]
[1751285830656,9.48753795,150.26,150.24,6.6542]
[1751285830860,2.83403795,150.26,150.18,39.6623]
[1751285831060,2.83403795,150.24,150.18,39.6623]
[1751285831262,2.83403795,150.24,150.22,6.655]
[1751285831660,2.83403795,150.24,150.18,39.6623]
[1751285832960,2.83403795,150.24,150.21,6.6553]
[1751285833362,9.48863795,150.24,150.21,6.6553]
[1751285834865,9.48813795,150.25,150.22,6.6552]
[1751285835662,2.83403795,150.25,150.18,39.6623]
[1751285836563,6.6546,150.24,150.18,39.6623]
[1751285837568,6.6546,150.24,150.21,6.6555]
[1751285839370,9.48813795,150.25,150.21,6.6555]
[1751285841770,1.81495969,150.23,150.22,6.6552]
[1751285842973,6.6535,150.26,150.24,6.6543]
[1751285843168,1.81495969,150.25,150.2,1.81495969]
[1751285843367,1.81495969,150.24,150.2,1.81495969]
[1751285844575,1.81495969,150.24,150.23,6.6545]
[1751285849878,162.7646,150.31,150.23,1.81495969]
[1751285850179,1.81495969,150.29,150.25,1.81495969]
[1751285850776,1.81495969,150.29,150.28,6.6526]
[1751285851776,9.4846872,150.31,150.28,6.6526]
[1751285852376,9.4846872,150.31,150.27,6.6528]
[1751285853179,6.6517,150.3,150.27,6.6528]
[1751285856677,9.4855872,150.29,150.26,6.6533]
[1751285861485,6.6526,150.28,150.26,6.6533]
[1751285867588,2.8333872,150.27,150.23,39.4157]
[1751285867889,2.8333872,150.27,150.23,34.9527]
[1751285868090,6.6537,150.26,150.24,6.6541]
[1751285869291,9.4865872,150.27,150.24,6.6541]
[1751285869592,9.4865872,150.27,150.25,6.6538]
[1751285870589,2.8333872,150.27,150.25,6.6538]
[1751285872695,9.4864872,150.27,150.25,6.6538]
[1751285873898,1.81412707,150.26,150.25,6.6538]
[1751285878206,6.6525,150.29,150.26,6.6534]
[1751285878500,1.81412707,150.3,150.26,1.81412707]
[1751285878701,1.81412707,150.3,150.28,6.6523]
[1751285878896,1.81412707,150.3,150.27,1.81412707]
[1751285879100,1.81412707,150.31,150.27,1.81412707]
[1751285879302,34.57412707,150.32,150.3,6.6517]
[1751285879694,1.81412707,150.31,150.25,2.1615]
[1751285879899,1.81412707,150.31,150.29,6.6519]
[1751285880301,32.76,150.32,150.29,1.81412707]
[1751285880501,32.76,150.32,150.3,6.6514]
[1751285881403,1.81412707,150.31,150.27,1.81412707]
[1751285881903,32.76,150.32,150.26,2.83279006]
[1751285882300,32.76,150.32,150.29,6.6518]
[1751285883109,32.76,150.32,150.3,6.6517]
[1751285895109,32.76,150.32,150.25,2.1615]
[1751285895110,35.57279006,150.35,150.28,2.83279006]
[1751285895310,35.57279006,150.35,150.28,35.57279006]
[1751285895710,42.22249006,150.35,150.32,6.6506]
[1751285898012,35.57279006,150.35,150.29,2.3303]
[1751285898215,2.83279006,150.33,150.28,32.74]
[1751285898812,9.48349006,150.33,150.29,6.6519]
[1751285899212,9.48349006,150.33,150.3,6.6516]
[1751285902918,2.83279006,150.33,150.29,6.652]
[1751285903319,2.83279006,150.31,150.25,37.0969]
[1751285903619,137.18439006,150.31,150.28,6.6523]
[1751285905322,127.7,150.31,150.29,6.6518]
[1751285906325,127.7,150.31,150.3,6.6517]
[1751285907626,163.25279006,150.36,150.32,6.6504]
[1751285908227,160.42,150.36,150.32,6.6504]
[1751285908432,160.42,150.36,150.33,6.6502]
[1751285909530,167.0693,150.36,150.33,6.6502]
[1751285912131,6.6495,150.35,150.32,6.6507]
[1751285914436,6.6495,150.35,150.33,6.6504]
[1751285916436,9.48229006,150.35,150.33,6.6504]
[1751285916736,9.48229006,150.35,150.32,6.6506]
[1751285917040,6.65,150.34,150.32,6.6506]
[1751285918234,163.25279006,150.36,150.33,6.6502]
[1751285918435,160.42,150.36,150.3,11.21227801]
[1751285918640,167.0692,150.36,150.33,6.6501]
[1751285920442,6.6495,150.35,150.33,6.6501]
[1751285921241,167.0693,150.36,150.33,6.6501]
[1751285931848,1.81213614,150.35,150.33,6.6501]
[1751285932044,167.0693,150.36,150.34,6.6499]
[1751285932342,1.81213614,150.35,150.34,6.6499]
[1751285933953,1.81213614,150.35,150.33,6.6501]
[1751285935241,167.0693,150.36,150.34,6.6498]
[1751285935445,1.81213614,150.35,150.34,6.6498]
[1751285936446,1.81213614,150.35,150.33,6.6501]
[1751285937144,167.0693,150.36,150.34,6.6499]
[1751285937347,1.81213614,150.35,150.34,6.6499]
[1751285937948,8.46173614,150.35,150.33,6.6502]
[1751285938147,1.81213614,150.34,150.33,6.6502]
[1751285939251,6.6513,150.31,150.29,6.18808795]
[1751285939454,1.81213614,150.3,150.27,6.18808795]
[1751285939652,1.81213614,150.31,150.29,6.6519]
[1751285940256,1.81213614,150.34,150.3,1.81213614]
[1751285940452,1.81213614,150.34,150.3,8.00022409]
[1751285940952,1.81213614,150.34,150.32,6.6504]
[1751285941352,1.81213614,150.34,150.31,6.18808795]
[1751285942049,1.81213614,150.34,150.32,6.6508]
[1751285942249,1.81213614,150.33,150.31,6.18808795]
[1751285942455,1.81213614,150.32,150.3,6.18808795]
[1751285942651,1.81213614,150.31,150.29,6.6519]
[1751285942851,1.81213614,150.3,150.29,6.6519]
[1751285943454,6.6511,150.32,150.29,6.6519]
[1751285943657,1.81213614,150.3,150.29,6.6519]
[1751285947556,1.81213614,150.3,150.28,6.6524]
[1751285947756,1.81213614,150.29,150.28,6.6524]
[1751285948257,1.81213614,150.29,150.27,6.6529]
[1751285948454,1.81213614,150.28,150.27,6.6529]
[1751285950558,32.7,150.32,150.25,1.81213614]
[1751285950757,1.81213614,150.29,150.25,1.81213614]
[1751285951056,1.81213614,150.3,150.25,1.81213614]
[1751285951256,1.81213614,150.3,150.26,1.81213614]
[1751285951852,42.18432137,150.32,150.25,6.18808795]
[1751285952449,42.18432137,150.32,150.29,6.6521]
[1751285953157,42.18432137,150.32,150.3,6.6517]
[1751285953158,32.7,150.32,150.3,6.6517]
[1751285953358,32.7,150.32,150.26,9.02140932]
[1751285953557,32.7,150.32,150.26,11.40260932]
[1751285953757,32.7,150.32,150.3,6.6513]
[1751285960362,39.3496,150.35,150.26,11.40260932]
[1751285960563,39.3496,150.35,150.28,9.02140932]
[1751285962164,39.3496,150.35,150.31,6.6509]
[1751285962564,39.3496,150.35,150.28,9.02140932]
[1751285963565,39.3496,150.35,150.32,6.6508]
[1751285968066,42.18292137,150.35,150.32,6.6508]
[1751285968771,6.6499,150.34,150.32,6.6508]
[1751285968973,35.53332137,150.35,150.32,6.6508]
[1751285969171,42.18302137,150.35,150.32,6.6508]
[1751285970371,2.3467,150.38,150.31,9.02140932]
[1751285970372,35.0467,150.38,150.31,9.02140932]
[1751285970569,2.83332137,150.37,150.31,6.18808795]
[1751285970773,2.83332137,150.37,150.3,6.18808795]
[1751285971168,6.6491,150.36,150.33,6.6501]
[1751285973775,1.81210744,150.35,150.33,6.6501]
[1751285974580,1.81210744,150.34,150.3,6.21086715]
[1751285974774,1.81210744,150.32,150.29,8.57766715]
[1751285975076,1.81210744,150.31,150.3,6.6515]
[1751285975476,1.81210744,150.32,150.3,6.6515]
[1751285975879,8.46290744,150.32,150.3,6.6515]
[1751285976081,8.46290744,150.32,150.29,9.0188]
[1751285976378,1.81210744,150.31,150.29,6.652]
[1751285976579,8.46350744,150.31,150.29,6.652]
[1751285976873,1.81210744,150.31,150.29,6.652]
[1751285977077,1.81210744,150.3,150.29,6.652]
[1751285977780,2.83329963,150.32,150.29,6.652]
[1751285978281,6.6513,150.31,150.29,6.652]
[1751285978580,2.83329963,150.32,150.29,6.652]